Cogmind - Beta 15 *** ADVENTURER MODE // 2025.06.09 @ 21:56:54 Player: User15V Result: Destroyed by B-86 Titan with Hardcell Cannon Performance ------------- Evolutions (7) 3500 Regions Visited (11) 2200 Robots Destroyed (67) 335 Value Destroyed (2959) 2959 Prototype IDs (14) 280 Alien Tech Used (0) 0 Bonus (11769) 11769 TOTAL SCORE: 21043 Bonus ------- Pure Core 2334 Scavenger 3000 Simple Hacker 3745 Sticky Parts 1500 Pacifist 491 Follower Combat Kills 699 Cogmind --------- Core Integrity 0/1300 Matter 129/300 Energy 100/100 System Corruption 4% Temperature Cool (0) Movement Core (50) Location -3/Research Parts ------- > --- POWER (2) -------- (None) > --- PROPULSION (6) --- (None) > --- UTILITY (10) ----- Advanced Target Analyzer Advanced Target Analyzer Armor Integrity Analyzer Improved Component Analysis Suite > --- WEAPON (3) ------- (None) > --- INVENTORY (0) ---- (None) Peak State ------------ > --- POWER ------------ Heavy Antimatter Reactor Light Quantum Reactor > --- PROPULSION ------- Flexi-carbon Leg Flexi-carbon Leg Myomer Leg Wheel Compact Wheel Compact Wheel > --- UTILITY ---------- Advanced Heat Sink Advanced Heat Sink Advanced Heat Sink Experimental Cooling System Advanced Target Analyzer Advanced Target Analyzer Quantum Capacitor Advanced Powered Armor Improved Component Analysis Suite > --- WEAPON ----------- Heavy Laser Railgun Advanced Remote Datajack > --- INVENTORY -------- (None) [Rating: 121] Favorites ----------- Power Micro Fission Core Engine Light Angular Momentum Engine Power Core Micro Fission Core Reactor Antimatter Reactor Propulsion Compact Wheel Leg Flexi-carbon Leg Wheel Compact Wheel Hover Unit Improved Gyrokinetic Inverter Flight Unit VTOL Module Utility Advanced Heat Sink Device Advanced Heat Sink Storage Large Matter Pod Processor Visual Processing Unit Hackware Hacking Suite Protection Core Shielding Weapon Cooled Particle Cannon Energy Gun Improved Arc Projector Energy Cannon Cooled Particle Cannon Ballistic Gun Autogun Ballistic Cannon Light Antimatter Cannon Launcher Grenade Launcher Special Weapon Advanced Remote Datajack Impact Weapon Power Maul Build | -11 -10 -10 -10 -7 -5 -5 -5 -4 -4 -4 -3 ------- Run | Yrd Mat Min Sub Scr Fac Was Fac Fac Upp Upp Res Slots Evolved 14 | . . . . . 10 . . 2 . . 2 Power 1 | . . . . . 1 . . . . . . Propulsion 4 | . . . . . 2 . . 1 . . 1 Utility 8 | . . . . . 6 . . 1 . . 1 Weapon 1 | . . . . . 1 . . . . . . Parts Attached 91 | . . 2 . 5 31 1 3 9 12 2 26 Power 13 | . . . . 1 5 . . 2 2 1 2 Engine 4 | . . . . 1 1 . . 1 1 . . Core 5 | . . . . . 4 . . 1 . . . Reactor 4 | . . . . . . . . . 1 1 2 Propulsion 21 | . . . . 1 7 . . 3 4 . 6 Treads . | . . . . . . . . . . . . Leg 5 | . . . . . . . . . 2 . 3 Wheel 6 | . . . . 1 . . . . 2 . 3 Hover 7 | . . . . . 5 . . 2 . . . Flight 3 | . . . . . 2 . . 1 . . . Utility 37 | . . 1 . 1 13 . 2 3 5 1 11 Device 18 | . . . . . 6 . 2 1 2 . 7 Storage 3 | . . . . 1 1 . . . 1 . . Processor 7 | . . . . . 3 . . 1 . . 3 Hackware 6 | . . . . . 3 . . 1 2 . . Protection 3 | . . 1 . . . . . . . 1 1 Artifact . | . . . . . . . . . . . . Weapon 20 | . . 1 . 2 6 1 1 1 1 . 7 Energy Gun 5 | . . . . . 2 . . 1 . . 2 Energy Cannon 3 | . . . . . 2 1 . . . . . Ballistic Gun 5 | . . . . 2 2 . . . . . 1 Ballistic Cannon 3 | . . . . . . . . . . . 3 Launcher 1 | . . 1 . . . . . . . . . Special Weapon 1 | . . . . . . . . . . . 1 Impact Weapon 2 | . . . . . . . 1 . 1 . . Slashing Weapon . | . . . . . . . . . . . . Piercing Weapon . | . . . . . . . . . . . . Special Melee Weapon . | . . . . . . . . . . . . Unidentified Prototypes 6 | . . . . . 2 . . 2 . . 2 Corrupted Parts 5 | . . . . . . 1 . 2 1 1 . System Corruption 27 | . . . . . . 6 . 11 8 2 . Parts Lost 83 | . . 1 . . 25 1 . 14 4 16 22 Power 13 | . . . . . 5 . . 3 1 2 2 Propulsion 20 | . . . . . 6 . . 3 . 5 6 Utility 32 | . . . . . 7 1 . 7 3 6 8 Weapon 18 | . . 1 . . 7 . . 1 . 3 6 Highest Loss Streak 19 | . . 1 . . 7 1 . 5 4 16 19 To Critical Strikes 1 | . . . . . . . . . 1 . . Average Backups . | . . . . . . . . . . . . Power . | . . . . . . . . . . . . Propulsion . | . . . . . . . . . . . . Utility . | . . . . . . . . . . . . Weapon . | . . . . . . . . . . . . Tool/Special . | . . . . . . . . . . . . Unused Backups . | . . . . . . . . . . . . Power . | . . . . . . . . . . . . Propulsion . | . . . . . . . . . . . . Utility . | . . . . . . . . . . . . Weapon . | . . . . . . . . . . . . Tool/Special . | . . . . . . . . . . . . Average Slot Usage (%) 63 | . . 13 14 72 69 64 66 53 79 44 59 Engine 2 | . . . . 10 3 . . 1 4 . . Core 2 | . . . . . 4 4 5 3 . . . Reactor 2 | . . . . . . . . . 4 2 6 Leg 2 | . . . . . . . . . 5 5 8 Wheel 4 | . . . . 13 1 . . . 9 5 8 Hover 3 | . . . . . 6 9 5 6 5 2 . Flight 1 | . . . . . 3 . . 1 . . . Device 9 | . . . . . 10 9 14 9 9 5 16 Storage 2 | . . . . 10 3 . . . 2 1 . Processor 6 | . . . . . 8 11 11 10 5 3 5 Hackware 8 | . . . . . 8 17 17 12 16 8 1 Protection 2 | . . 7 14 14 . . . . . . 2 Energy Gun 2 | . . . . . . 4 5 1 5 2 3 Energy Cannon 2 | . . . . . 7 3 . . . . . Ballistic Gun 3 | . . . . 23 5 . . . . . 1 Impact Weapon 2 | . . . . . . . 3 5 9 5 . Peak Build Rating 121 | . . 2 1 22 72 58 52 66 86 75 121 Average Rating 52 | . . . 1 19 52 52 49 50 76 41 73 On Entrance 24 | . . . 1 1 22 56 39 52 38 75 4 Naked Turns 98 | . 8 90 . . . . . . . . . Heaviest Build 73 | . . 4 1 22 42 26 17 31 44 35 73 Greatest Support 42 | 3 3 3 3 28 29 17 6 24 28 28 42 Greatest Overweight (x) 9 | . . 1 . . 7 1 2 2 1 4 9 Average Overweight (x) . | . . . . . . . 1 . . . 1 Largest Inventory Capacity . | . . . . . . . . . . . . Average Capacity . | . . . . . . . . . . . . Most Carried . | . . . . . . . . . . . . Average Carried . | . . . . . . . . . . . . Final Capacity . | . . . . . . . . . . . . Final Carried . | . . . . . . . . . . . . Class Distribution -------------------- 53% | Hacker-Mutant 21% | Mutant 9% | Scavenger-Mutant 9% | Scavenger-Gunner Dominant Class ---------------- Mutant | -10/Mines Mutant | -10/Subcaves Mutant | -7/Scraptown Hacker-Mutant | -5/Factory Hacker-Mutant | -5/Waste Hacker-Mutant | -5/Factory Hacker-Mutant | -4/Factory Hacker-Mutant | -4/Upper Caves Hacker-Mutant | -4/Upper Caves Scavenger-Gunner | -3/Research Resources | -11 -10 -10 -10 -7 -5 -5 -5 -4 -4 -4 -3 ----------- Run | Yrd Mat Min Sub Scr Fac Was Fac Fac Upp Upp Res Matter Collected 1636 | 130 . 90 . 79 674 . 40 149 157 21 296 Remotely . | . . . . . . . . . . . . Salvage Created 3932 | . . . . . 1557 . 40 790 298 227 1020 Parts 119 | . . . . . 63 . 1 11 3 10 31 Haulers Intercepted 4 | . . . . . 1 . . 2 . . 1 Recyclers Shooed 4 | . . . . . 2 . . 1 . . 1 Parts Field Recycled . | . . . . . . . . . . . . Retrieved Matter . | . . . . . . . . . . . . Parts Self-Destructed 11 | . . . . . . . . . 2 9 . Prevented 7 | . . . . . . . . . 4 3 . Kills | -11 -10 -10 -10 -7 -5 -5 -5 -4 -4 -4 -3 ------- Run | Yrd Mat Min Sub Scr Fac Was Fac Fac Upp Upp Res Combat Hostiles Destroyed 47 | . . . . . 25 . . 6 3 3 10 Melee 3 | . . . . . . . . 1 . 2 . Guns 11 | . . . . . 6 . . . . . 5 Cannons 21 | . . . . . 19 . . . . . 2 Classes Destroyed 15 | . . . . . 11 . . 1 . 1 2 Worker 2 | . . . . . 1 . . 1 . . . Builder 1 | . . . . . . . . 1 . . . Hauler 4 | . . . . . 1 . . 2 . . 1 Recycler 6 | . . . . . 3 . . 1 . . 2 Operator 1 | . . . . . . . . . . . 1 Watcher 6 | . . . . . 4 . 1 . . . 1 Swarmer 16 | . . . . . 16 . . . . . . Grunt 11 | . . . . . 1 . . 5 . 2 3 Duelist 1 | . . . . . . . . . . 1 . Sentry 5 | . . . . . 1 . . 1 1 . 2 Specialist 2 | . . . . . 2 . . . . . . Hunter 3 | . . . . . 1 . . . 2 . . Programmer 7 | . . . . . 3 . . . . . 4 Heavy 1 | . . . . . . . . . . . 1 Behemoth 1 | . . . . . 1 . . . . . . Best Kill Streak 8 | . . . . . 8 . 1 5 2 3 4 Combat Bots Only 6 | . . . . . 6 . . 3 2 3 3 Max Kills in Single Turn 1 | . . . . . 1 . 1 1 1 1 1 Gunslinging . | . . . . . . . . . . . . Exploded . | . . . . . . . . . . . . Melee 1 | . . . . . . . . 1 . 1 . Uniques/NPCs Destroyed . | . . . . . . . . . . . . Combat | -11 -10 -10 -10 -7 -5 -5 -5 -4 -4 -4 -3 -------- Run | Yrd Mat Min Sub Scr Fac Was Fac Fac Upp Upp Res Hostile Shots Fired 821 | . . 14 . . 225 2 . 86 70 116 308 Missed 259 | . . 4 . . 69 1 . 31 25 26 103 Hits 562 | . . 10 . . 156 1 . 55 45 90 205 Melee 7 | . . . . . . 1 . . . 6 . Projectile 555 | . . 10 . . 156 . . 55 45 84 205 AOE 11 | . . 10 . . 1 . . . . . . Critical Strikes 25 | . . . . . 3 1 . 1 2 5 13 Actively Blocked 3 | . . . . . . . . . . 3 . Part Disruptions 6 | . . . . . 6 . . . . . . Damage Taken 8554 | . . 338 . . 1793 22 . 881 525 1488 3507 Core 2912 | . . 231 . . 394 . . 316 83 568 1320 Absorbed by Shields 247 | . . . . . . . . . 197 50 . Redirected to Shielding 117 | . . 47 . . 3 . . . . 67 . Ignored by Resistances 2639 | . . 91 . . 646 18 . 252 189 433 1010 Core Remaining (%) 45 | 100 . . . 7 . . 60 . . 15 . Volleys Fired 241 | . . 2 . . 130 . 8 . 1 . 100 Largest 3 | . . 1 . . 3 . 1 . 1 . 2 Hottest 132 | . . 30 . . 130 . 65 . 88 . 132 Shots Fired 348 | . . 2 . . 200 . 8 . 2 . 136 Gun 243 | . . . . . 120 . 8 . 2 . 113 Cannon 101 | . . . . . 80 . . . . . 21 Launcher 2 | . . 2 . . . . . . . . . Special 2 | . . . . . . . . . . . 2 Kinetic 128 | . . . . . 99 . . . . . 29 Thermal 187 | . . . . . 80 . . . 2 . 105 Explosive 2 | . . 2 . . . . . . . . . Electromagnetic 29 | . . . . . 21 . 8 . . . . Robot Hit Streak 27 | . . 2 . . 16 . 17 . 2 . 27 Robot Miss Streak 3 | . . . . . 3 . 1 . . . 2 Penetration Max . | . . . . . . . . . . . . Secondary Targets . | . . . . . . . . . . . . Capacitor 50 | . . . . . . . . . . . 50 Shots Hit Robots 323 | . . 2 . . 144 . 5 20 17 14 121 Core Hits 105 | . . . . . 58 . 3 3 2 3 36 Critical Kills 1 | . . . . . 1 . . . . . . Critical Parts Destroyed 13 | . . . . . 1 . . 6 4 1 1 Critical Strikes 23 | . . . . . 2 . . 6 4 1 10 Burn 8 | . . . . . . . . . . . 8 Destroy 4 | . . . . . 2 . . . . . 2 Smash 11 | . . . . . . . . 6 4 1 . Melee Attacks 62 | . . . . . . . 7 23 17 15 . Impact 62 | . . . . . . . 7 23 17 15 . Slashing . | . . . . . . . . . . . . Piercing . | . . . . . . . . . . . . Sneak Attacks 2 | . . . . . . . . 2 . . . Combat Hostiles . | . . . . . . . . . . . . Follow-up Attacks 4 | . . . . . . . . . 2 2 . Damage Inflicted 8789 | . . 39 . . 3512 . 109 1186 713 520 2710 Guns 3614 | . . . . . 1414 . 109 . 29 . 2062 Cannons 2554 | . . . . . 1906 . . . . . 648 Explosions 231 | . . 39 . . 192 . . . . . . Melee 2388 | . . . . . . . . 1186 684 518 . Ramming 2 | . . . . . . . . . . 2 . Kinetic 2057 | . . . . . 1215 . . . . . 842 Thermal 3995 | . . . . . 2098 . . . 29 . 1868 Explosive 39 | . . 39 . . . . . . . . . Electromagnetic 308 | . . . . . 199 . 109 . . . . Impact 2388 | . . . . . . . . 1186 684 518 . Slashing . | . . . . . . . . . . . . Piercing . | . . . . . . . . . . . . Highest Corruption 24 | . . . . . 1 12 12 14 22 24 4 Average Corruption 8 | . . . . . 1 8 12 10 14 22 1 Corruption Purged . | . . . . . . . . . . . . Corruption Blocked 11 | . . . . . 7 4 . . . . . Effects 76 | . . . . . 2 6 19 11 28 4 6 Message Errors 13 | . . . . . . . 4 1 5 1 2 Matter Fused 23 | . . . . . 2 3 5 2 6 2 3 Heat Flow Errors 9 | . . . . . . . 3 1 3 1 1 Energy Discharges 16 | . . . . . . 2 6 2 6 . . Parts Rejected 1 | . . . . . . . . 1 . . . Parts Fused 1 | . . . . . . . . . 1 . . Data Loss (minor) 4 | . . . . . . . 1 . 3 . . Data Loss (major) 6 | . . . . . . 1 . 2 3 . . Misfires 1 | . . . . . . . . . 1 . . Misdirections 2 | . . . . . . . . 2 . . . Overload Shots 12 | . . . . . 12 . . . . . . Overflow Damage 751 | . . . . . 46 . . 457 201 47 . Projectiles 46 | . . . . . 46 . . . . . . Explosions . | . . . . . . . . . . . . Melee 705 | . . . . . . . . 457 201 47 . Knockbacks 19 | . . . . . . . . 4 5 4 6 Impact 11 | . . . . . . . . 4 4 3 . Kinetic 5 | . . . . . . . . . . . 5 Secondary 3 | . . . . . . . . . 1 1 1 Self-Inflicted Damage 12 | . . . . . 11 . . . . 1 . Shots 1 | . . . . . 1 . . . . . . Rammed 1 | . . . . . . . . . . 1 . Targets Rammed 1 | . . . . . . . . . . 1 . Kicked . | . . . . . . . . . . . . Crushed . | . . . . . . . . . . . . Highest Temperature 302 | . . . . . 302 . 152 146 298 251 243 Average Temperature 84 | . . . . . 84 . 44 73 112 135 73 Received Heat Transfer 1904 | . . 9 . . 153 . . 295 36 291 1120 Effects 1 | . . . . . 1 . . . . . . Energy Bleed 1 | . . . . . 1 . . . . . . Siege Activations . | . . . . . . . . . . . . Martial Activations . | . . . . . . . . . . . . Shielding Activations . | . . . . . . . . . . . . Robots Disrupted 2 | . . . . . 1 . 1 . . . . Combat Hostiles 1 | . . . . . 1 . . . . . . Robots Corrupted 10 | . . . . . . . . 6 3 1 . Combat Hostiles 9 | . . . . . . . . 5 3 1 . Parts Fried 16 | . . . . . 2 . . 12 1 1 . Impact Corruptions 26 | . . . . . . . . 14 9 3 . Robots Melted 3 | . . . . . . . . . . . 3 Combat Hostiles 3 | . . . . . . . . . . . 3 Parts Melted 21 | . . . . . 3 . . . 1 . 17 Heat Transferred 6582 | . . . . . 2475 . . . 37 . 4070 Parts Sabotaged . | . . . . . . . . . . . . Parts Stolen . | . . . . . . . . . . . . Parts Stripped . | . . . . . . . . . . . . Power Chain Reactions 1 | . . . . . 1 . . . . . . Alert | -11 -10 -10 -10 -7 -5 -5 -5 -4 -4 -4 -3 ------- Run | Yrd Mat Min Sub Scr Fac Was Fac Fac Upp Upp Res Maximum Alert Level . | . . . . . . . . . . . . Low Security (%) 100 | 100 100 100 . . 100 100 100 100 . . 100 Level 1 . | . . . . . . . . . . . . Level 2 . | . . . . . . . . . . . . Level 3 . | . . . . . . . . . . . . Level 4 . | . . . . . . . . . . . . Level 5 . | . . . . . . . . . . . . High Security . | . . . . . . . . . . . . Max Security . | . . . . . . . . . . . . Peak Influence 185 | . . 50 . . 148 . 12 55 . . 185 Initial . | . . . . . . . . . . . . Average 42 | . . 6 . . 43 . . 16 . . 96 Influence Increases 1837 | . . 70 . . 697 . 25 178 80 60 727 Destroy 0b10 Robot/C 1200 | . . . . . 500 . . 120 60 60 460 Destroy 0b10 Robot/NC 125 | . . . . . 50 . 5 25 10 . 35 Destroy Leader 254 | . . . . . 112 . 2 24 10 . 106 Allied During Kill 30 | . . . . . . . . . . . 30 Successful Hack 20 | . . . . . 8 . 12 . . . . Disable Machine 27 | . . . . . 9 . . 9 . . 9 Destroy Structure 46 | . . 10 . . 18 . 6 . . . 12 Partial Spotted 30 | . . 30 . . . . . . . . . Lose Combat Pursuer 105 | . . 30 . . . . . . . . 75 Influence Decreases 1770 | . . 40 18 12 697 . 25 178 60 80 660 Entered New Map 36 | . . . 18 12 . . . . . 6 . Time Decay 1180 | . . 30 . . 487 . 25 148 60 10 420 Lost Part 534 | . . 10 . . 210 . . 30 . 64 220 Lost Ally 20 | . . . . . . . . . . . 20 Squads Dispatched 19 | . . . . . 4 . . 4 . 1 10 Investigation 2 | . . . . . . . . . . . 2 Extermination 5 | . . . . . 2 . . 1 . . 2 Reinforcement 8 | . . . . . 2 . . 3 . . 3 Assault 1 | . . . . . . . . . . 1 . Garrison 3 | . . . . . . . . . . . 3 Intercept . | . . . . . . . . . . . . Searches Triggered . | . . . . . . . . . . . . Construction Impeded 1 | . . . . . 1 . . . . . . Haulers Reinforced 3 | . . . . . 1 . . 2 . . . Active Scanning Responses . | . . . . . . . . . . . . Cargo Convoy Interrupts 1 | . . . . . 1 . . . . . . Stealth | -11 -10 -10 -10 -7 -5 -5 -5 -4 -4 -4 -3 --------- Run | Yrd Mat Min Sub Scr Fac Was Fac Fac Upp Upp Res Distress Signals 5 | . . . . . 1 . . 1 . . 3 Communications Jammed . | . . . . . . . . . . . . Distress Signals . | . . . . . . . . . . . . Times Spotted 130 | . . 4 . . 45 4 2 15 3 12 45 Peak Tracking Total 10 | . . 2 . . 7 4 1 10 2 8 9 Tactical Retreats 3 | . . 1 . . . . . . . . 2 Traps | -11 -10 -10 -10 -7 -5 -5 -5 -4 -4 -4 -3 ------- Run | Yrd Mat Min Sub Scr Fac Was Fac Fac Upp Upp Res Traps Triggered 6 | . . . . . 2 . . 1 1 . 2 Indirectly . | . . . . . . . . . . . . Trap Hack Attempts . | . . . . . . . . . . . . Triggered . | . . . . . . . . . . . . Disarmed . | . . . . . . . . . . . . Reprogrammed . | . . . . . . . . . . . . Reused . | . . . . . . . . . . . . Traps Extracted . | . . . . . . . . . . . . Installed . | . . . . . . . . . . . . Triggered . | . . . . . . . . . . . . Machines | -11 -10 -10 -10 -7 -5 -5 -5 -4 -4 -4 -3 ---------- Run | Yrd Mat Min Sub Scr Fac Was Fac Fac Upp Upp Res Machines Disabled 3 | . . . . . 1 . . 1 . . 1 Max in Single Turn 1 | . . . . . 1 . . 1 . . . Garrison Access 2 | . . . . . . . 1 . . . 1 Machines Repaired . | . . . . . . . . . . . . Machines Dismantled . | . . . . . . . . . . . . Machines Sabotaged . | . . . . . . . . . . . . Overloaded Fab Kills . | . . . . . . . . . . . . Hacking | -11 -10 -10 -10 -7 -5 -5 -5 -4 -4 -4 -3 --------- Run | Yrd Mat Min Sub Scr Fac Was Fac Fac Upp Upp Res Machines Accessed 8 | . . . . . 2 . 2 . 2 . 2 Terminals 5 | . . . . . 2 . 1 . 1 . 1 Fabricators . | . . . . . . . . . . . . Repair Stations . | . . . . . . . . . . . . Recycling Units . | . . . . . . . . . . . . Scanalyzers . | . . . . . . . . . . . . Garrison Access 2 | . . . . . . . 1 . . . 1 Total Hacks 17 | . . . . . 7 . 5 . 2 . 3 Successful 9 | . . . . . 3 . 3 . 2 . 1 Failed 8 | . . . . . 4 . 2 . . . 2 Catastrophic 2 | . . . . . . . . . . . 2 Database Lockouts . | . . . . . . . . . . . . Manual . | . . . . . . . . . . . . Terminals 13 | . . . . . 7 . 3 . 1 . 2 Fabricators . | . . . . . . . . . . . . Repair Stations . | . . . . . . . . . . . . Recycling Units . | . . . . . . . . . . . . Scanalyzers . | . . . . . . . . . . . . Garrison Access 3 | . . . . . . . 2 . . . 1 Terminal Hacks 7 | . . . . . 3 . 2 . 2 . . Record 1 | . . . . . . . . . 1 . . Prototype ID Bank 1 | . . . . . 1 . . . . . . Open Door 1 | . . . . . . . . . 1 . . Level Access Points 1 | . . . . . . . 1 . . . . Locate Traps 3 | . . . . . 2 . 1 . . . . Fabricator Hacks . | . . . . . . . . . . . . Repair Station Hacks . | . . . . . . . . . . . . Recycling Unit Hacks . | . . . . . . . . . . . . Scanalyzer . | . . . . . . . . . . . . Garrison Access Hacks 2 | . . . . . . . 1 . . . 1 Seal Access 2 | . . . . . . . 1 . . . 1 Unauthorized Hacks . | . . . . . . . . . . . . Terminals . | . . . . . . . . . . . . Fabricators . | . . . . . . . . . . . . Repair Stations . | . . . . . . . . . . . . Recycling Units . | . . . . . . . . . . . . Scanalyzers . | . . . . . . . . . . . . Garrison Access . | . . . . . . . . . . . . Data Cores Recovered . | . . . . . . . . . . . . Used . | . . . . . . . . . . . . Hacking Detections 3 | . . . . . 1 . 1 . . . 1 Full Trace Events 1 | . . . . . . . . . . . 1 Feedback Events . | . . . . . . . . . . . . Feedback Blocked . | . . . . . . . . . . . . Robot Schematics Acquired . | . . . . . . . . . . . . Robots Built . | . . . . . . . . . . . . Authchips . | . . . . . . . . . . . . Time . | . . . . . . . . . . . . Total Robot Build Rating . | . . . . . . . . . . . . Part Schematics Acquired . | . . . . . . . . . . . . Parts Built . | . . . . . . . . . . . . Authchips . | . . . . . . . . . . . . Time . | . . . . . . . . . . . . Total Part Build Rating . | . . . . . . . . . . . . Parts Repaired . | . . . . . . . . . . . . Time . | . . . . . . . . . . . . Parts Recycled . | . . . . . . . . . . . . Recycled Matter . | . . . . . . . . . . . . Retrieved Matter . | . . . . . . . . . . . . Retrieved Components . | . . . . . . . . . . . . Parts Scanalyzed . | . . . . . . . . . . . . Part Schematics Acquired . | . . . . . . . . . . . . Parts Damaged . | . . . . . . . . . . . . Bothacking | -11 -10 -10 -10 -7 -5 -5 -5 -4 -4 -4 -3 ------------ Run | Yrd Mat Min Sub Scr Fac Was Fac Fac Upp Upp Res Used RIF Installer . | . . . . . . . . . . . . Robots Hacked 2 | . . . . . . . . . . . 2 Non-combat . | . . . . . . . . . . . . Combat 2 | . . . . . . . . . . . 2 Robot Hacks Applied 2 | . . . . . . . . . . . 2 parse_system 2 | . . . . . . . . . . . 2 Relay Couplers Released . | . . . . . . . . . . . . Fabnet Peak Effective % . | . . . . . . . . . . . . Robots Rewired 2 | . . . . . 1 . 1 . . . . Allies Hacked . | . . . . . . . . . . . . Hacks Repelled . | . . . . . . . . . . . . Allies | -11 -10 -10 -10 -7 -5 -5 -5 -4 -4 -4 -3 -------- Run | Yrd Mat Min Sub Scr Fac Was Fac Fac Upp Upp Res Total Allies 3 | . . . . . 1 . 1 . . 1 . Largest Group 1 | . . . . . 1 . 1 . . 1 1 Highest-Rated Group 180 | . . . . . 46 . 23 . . 180 180 Highest-Rated Ally 180 | . . . . . 46 . 23 . . 180 180 Total Orders 1 | . . . . . . . 1 . . . . DROP 1 | . . . . . . . 1 . . . . Ally Attacks 71 | . . . . . 2 . . . . 4 65 Total Damage 2608 | . . . . . 34 . . . . 182 2392 Kills 16 | . . . . . 1 . . . . . 15 Allies Corrupted 1 | . . . . . . 1 . . . . . Allies Melted . | . . . . . . . . . . . . Intel | -11 -10 -10 -10 -7 -5 -5 -5 -4 -4 -4 -3 ------- Run | Yrd Mat Min Sub Scr Fac Was Fac Fac Upp Upp Res Active Infowar (turns) 2484 | . . . . . 595 188 479 456 717 49 . Optics 2484 | . . . . . 595 188 479 456 717 49 . Sensors 491 | . . . . . . . 366 125 . . . Jamming 531 | . . . . . . . 415 116 . . . Robot Analysis Total . | . . . . . . . . . . . . Derelict Logs Recovered 2 | . . 1 . . . . . . . 1 . Drone Launches . | . . . . . . . . . . . . Drone Recoveries . | . . . . . . . . . . . . Exploration | -11 -10 -10 -10 -7 -5 -5 -5 -4 -4 -4 -3 ------------- Run | Yrd Mat Min Sub Scr Fac Was Fac Fac Upp Upp Res Turns Passed 4782 | 10 8 280 6 439 1188 188 479 456 717 84 927 Spaces Moved 3494 | 20 15 331 12 440 792 151 192 306 600 49 586 Core 619 | 20 15 331 12 16 . . . . . 22 203 Treads . | . . . . . . . . . . . . Legs 2 | . . . . . . . . . . . 2 Wheels 1705 | . . . . 424 280 . . . 593 27 381 Hover 1119 | . . . . . 499 151 192 270 7 . . Flight 49 | . . . . . 13 . . 36 . . . Fastest Speed 40 | 50 50 50 50 50 48 61 160 40 70 50 50 Average Speed 105 | 50 50 59 50 98 104 121 223 101 106 90 105 Slowest Speed 595 | 50 50 100 50 100 595 160 240 240 107 250 500 Overloaded Moves . | . . . . . . . . . . . . Propulsion Burnouts . | . . . . . . . . . . . . Robots Hopped . | . . . . . . . . . . . . Potential Cave-ins 4 | . . . . . . . 4 . . . . Cave-ins Triggered . | . . . . . . . . . . . . Exploration Rate (%) 28 | 3 6 59 3 41 23 94 6 8 71 3 23 Regions Visited 11 Branch Regions 5 Pre-discovered Areas 1 | . . 1 . . . . . . . . . Known Exits Taken 2 | . . . . . . . 1 . . 1 . Unknown Exits Taken 7 | 1 1 1 1 1 . . . 1 1 . . Scrap Searched 5 | . . . . 3 . . . . 2 . . Spaces Dug 7 | . . . . . . . 7 . . . . Terrain Destroyed 37 | . . 18 . . 8 . 7 . 1 . 3 Melee 7 | . . . . . . . 7 . . . . Projectile 11 | . . . . . 7 . . . 1 . 3 AOE 19 | . . 18 . . 1 . . . . . . Terrain Rammed . | . . . . . . . . . . . . Walls Destroyed . | . . . . . . . . . . . . Machines Disabled . | . . . . . . . . . . . . Actions | -11 -10 -10 -10 -7 -5 -5 -5 -4 -4 -4 -3 --------- Run | Yrd Mat Min Sub Scr Fac Was Fac Fac Upp Upp Res Total 4156 | 19 14 409 11 444 986 154 220 398 643 64 794 Wait 264 | . . 75 . . 30 . 3 60 17 . 79 Move 3484 | 19 14 330 11 439 792 150 191 305 599 48 586 Hop . | . . . . . . . . . . . . Pick Up . | . . . . . . . . . . . . Fast Attach 98 | . . 2 . 5 31 4 3 10 12 2 29 Attach . | . . . . . . . . . . . . Detach . | . . . . . . . . . . . . Swap . | . . . . . . . . . . . . Drop . | . . . . . . . . . . . . Fire 241 | . . 2 . . 130 . 8 . 1 . 100 Melee 57 | . . . . . . . 7 23 14 13 . Ram 1 | . . . . . . . . . . 1 . Kick . | . . . . . . . . . . . . Crush . | . . . . . . . . . . . . Escape Stasis . | . . . . . . . . . . . . Rewire 11 | . . . . . 3 . 8 . . . . Trap . | . . . . . . . . . . . . Miscellaneous . | . . . . . . . . . . . . Route ------- -11/Scrapyard -10/Materials -10/Mines -10/Subcaves -7/Scraptown -5/Factory -5/Waste -5/Factory (discovered 4 exits: *Fac x4) -4/Factory -4/Upper Caves -4/Upper Caves (discovered 2 exits: *Res x2) -3/Research History --------- Turn | Location | Event 5 | -11/Scrapyard | Discovered new exit (range 13) 11 | -11/Scrapyard | Entered Materials 11 | -10/Materials | Discovered new exit (range 14) 19 | -10/Materials | Entered Mines 97 | -10/Mines | Learned location of Mines (-8) 109 | -10/Mines | YI-UF0 nonchalantly dropped a Grenade Launcher on the ground 150 | -10/Mines | Joined a pair of Derelicts in attacking an 0b10 outpost 205 | -10/Mines | Assembled infested the area 241 | -10/Mines | Core integrity fell below 50% 248 | -10/Mines | Core integrity fell below 20% 293 | -10/Mines | Discovered new exit (range 13) 299 | -10/Mines | Entered Subcaves 300 | -10/Subcaves | Approached by a straggling Scientist 301 | -10/Subcaves | Scientist uncovered a shortcut to Scraptown 305 | -10/Subcaves | Entered Scraptown 310 | -7/Scraptown | Build established: Mutant 486 | -7/Scraptown | Visited Awakened 646 | -7/Scraptown | Visited Shadow of the Wyrm 684 | -7/Scraptown | Discovered new exit (range 3) 744 | -7/Scraptown | Entered Factory 744 | -5/Factory | Evolved 10 slots: Power x1, Propulsion x2, Utility x6, Weapon x1 1001 | -5/Factory | Lost 3 parts (1p2w) 1211 | -5/Factory | Lost 4 parts (1p2n1u) 1359 | -5/Factory | Spotted B-75 Beast 1411 | -5/Factory | Destroyed B-75 Beast 1440 | -5/Factory | Lost 5 parts (1p1n2u1w) 1645 | -5/Factory | Allied Derelicts emerged from ambush trap array 1696 | -5/Factory | Build established: Hacker-Mutant 1772 | -5/Factory | Cargo convoy interrupted 1830 | -5/Factory | Lost 3 allies 1856 | -5/Factory | Lost 7 parts (1p3n3w) 1932 | -5/Factory | Sucked down chute 1932 | -5/Factory | Entered Waste 1938 | -5/Waste | Spotted C-40 Crusher 1947 | -5/Waste | 1 allies followed down the chute 1947 | -5/Waste | EMP discharged 1985 | -5/Waste | Spotted C-40 Crusher 2028 | -5/Waste | Spotted C-40 Crusher 2029 | -5/Waste | Spotted C-40 Crusher 2047 | -5/Waste | EMP discharged 2047 | -5/Waste | System corruption reached 10% 2048 | -5/Waste | Spotted C-40 Crusher 2060 | -5/Waste | Spotted C-40 Crusher 2070 | -5/Waste | Crushed by Compactor (1 part destroyed, 2 dropped) 2101 | -5/Waste | Discovered new exit (range 13) 2120 | -5/Waste | Entered Factory 2306 | -5/Factory | Identified exit to Factory 2599 | -5/Factory | Entered another Factory area 2599 | -4/Factory | Evolved 2 slots: Propulsion x1, Utility x1 2744 | -4/Factory | Lost 5 parts (1p1n2u1w) 2814 | -4/Factory | Discovered new exit (range 15) 2862 | -4/Factory | Lost 4 parts (1n3u) 2915 | -4/Factory | System corruption reached 10% 2942 | -4/Factory | Found Prototype Hackware 2942 | -4/Factory | Identified Exp. Hacking Suite 3055 | -4/Factory | Entered Upper Caves 3058 | -4/Upper Caves | Found DCF Scrap (12 items) 3085 | -4/Upper Caves | Lost 5 parts (2p1n2u) 3369 | -4/Upper Caves | Attracted the attention of an 0b10 checkpoint 3730 | -4/Upper Caves | Lost 4 parts (1p3u) 3759 | -4/Upper Caves | Discovered new exit (range 12) 3772 | -4/Upper Caves | Entered another Upper Caves area 3791 | -4/Upper Caves | Attracted the attention of an 0b10 outpost 3821 | -4/Upper Caves | Core integrity fell below 50% 3831 | -4/Upper Caves | Identified exit to Research 3846 | -4/Upper Caves | 7V-RTL showed up to help 3848 | -4/Upper Caves | 7V-RTL revealed a hidden path 3849 | -4/Upper Caves | Core integrity fell below 20% 3856 | -4/Upper Caves | Entered Research 3856 | -3/Research | Accompanied by 1 ally (7V-RTL) 3856 | -3/Research | Evolved 2 slots: Propulsion x1, Utility x1 3878 | -3/Research | Lost 16 parts (2p5n6u3w) 4041 | -3/Research | Found Adv. Powered Armor 4351 | -3/Research | Found Quantum Capacitor 4486 | -3/Research | Build established: Scavenger-Gunner 4695 | -3/Research | Core integrity fell below 50% 4758 | -3/Research | Lost 19 parts (2p5n7u5w) 4758 | -3/Research | Core integrity fell below 20% 4768 | -3/Research | Spotted B-86 Titan 4783 | -3/Research | Destroyed by B-86 Titan with Hardcell Cannon Last Messages --------------- 04727_ Lgt. Antimatter Cannon destroyed. 04730_ K-01 Serf collects debris. 04733_ W-44 Eye distress signal alerts nearby ally. 04733_ ALERT: Hostiles spotted, dispatching reinforcements to Terminal R008. 04754_ Acquired Armor Integrity Analyzer. 04757_ Penetrated by Slug. 04761_ Slug penetrates Wall. 04764_ Slug penetrates Door. 04764_ Penetrated by Slug. 04764_ Slug penetrates Wall. 04772_ Penetrated by Slug. 04772_ Slug penetrates Wall. 04775_ Critical hit (Meltdown: +280). 04775_ Fabricator disabled. 04775_ Penetrated by Slug. 04775_ U-05 Engineer builds a Wall. 04776_ K-01 Serf collects debris. 04783_ Subatomic Condenser disabled. Map ----- +----------------------------------------------------+ | | | | | | | | | | | | | | | | | | | ?????????????????????????????????????????????????? | | ?????????????????????????????????????????????????? | | ?????????????????????????????????????????????????? | | ?????????????????????????????????????????????????? | | ?????????????????????????????????????????????????? | | ?????????????????????????????????????????????????? | | ?????????????????????????????????????????????????? | | ?????????????????????????????????????????????????? | | ?????????????????????????????????????????????????? | | ?????????????????????????????????????????????????? | | ??????????####???????????????????????????????????? | | ???????#### #???????????????????????????????????? | | ########""" ################????????????????????? | | BB ????????????????????? | | BB ?????????????????????? | | % #??????????????????????? | | """ " " @#??????????????????????? | | # """ """ #??????????????????????? | | # """ """ #??????????????????????? | | # #??????????????????????? | | # #??????????????????????? | | # "" #??????????????????????? | | # "" F"" """ """ #??????????????????????? | | # """""" """ """ +??????????????????????? | | ## """" """ k""" #??????????????????????? | | ?# #??????????????????????? | | ?# #??????????????????????? | | ?# ?????????????????????? | | ?? #### ?????????????????????? | | ???????# ????????????????????? | | ???????# ????????????????????? | | ???????###########+##########????????????????????? | | ?????????????????????????????????????????????????? | | ?????????????????????????????????????????????????? | | ?????????????????????????????????????????????????? | | ?????????????????????????????????????????????????? | | ?????????????????????????????????????????????????? | | ?????????????????????????????????????????????????? | | ?????????????????????????????????????????????????? | | ?????????????????????????????????????????????????? | | ?????????????????????????????????????????????????? | +----------------------------------------------------+ Best States ------------- Heat Dissipation 141 Energy Generation 45 Energy Capacity 575 Matter Stores 432 Matter Capacity 700 Sight Range 18 Robot Scan Range 16 Terrain Scan Density 10 Jamming Range 12 EM Shielding 2 Corruption Block 11 Armor Coverage 400 Resistance: KI 45 Resistance: TH 20 Resistance: EX 20 Resistance: EM 20 Resistance: I 20 Resistance: S 20 Resistance: P 20 Core Shielding 30 Weapon Cycling 30 Evasion (%) 62 Targeting Accuracy 8 Melee Accuracy 6 Target Analysis 12 Armor Integrity Analysis 30 Offensive Hacking 58 Defensive Hacking 14 Item Schematics ----------------- None Robot Schematics ------------------ None Fabricated ------------ Nothing Repaired ---------- Nothing Alien Tech Used ----------------- None Achievements -------------- None Challenges ------------ Pure Core Scavenger Simple Hacker Sticky Parts Game ------ Seed HeatMetafiberSpiker Manual? 0 Play Time 00:50:48 Cumulative 478.8 hours Start 2025.06.09 @ 21:05:57 End 2025.06.09 @ 21:56:54 Sessions 1 Manual Loads 0 Difficulty Adventurer Special Mode None Game No. 204 Rogue 104 Adventurer 100 Explorer 0 Win Type - Total 30 Types 15/5/0/5/1/1/0/0/1/2 Lore% 85 Gallery% 90 Achievement% 85 Wizard Run 0 Options --------- Layout 2 ASCII 0 Keyboard 0 Movement Mouse Keybinds 0 Fullscreen 2 Font 24/Smallcaps Map View 50x44 Zoom Use 0% Tactical HUD 1 Map Filters NONE Filters NONE Steam 1 RUN: 2cb33733-61e2-44f7-97e0-d100d9eba5ee